bitfinex/quotes_BTCUSD_20241028
["timestamp","ask_amount","ask_price","bid_price","bid_amount"]
[1730081288973,0.47646707,67775.0,67774.0,0.002]
[1730081289189,0.47646707,67775.0,67774.0,0.149549]
[1730081289406,0.47646707,67775.0,67774.0,0.148549]
[1730081289638,0.47746707,67775.0,67774.0,0.001]
[1730081291454,0.47746707,67775.0,67774.0,0.148549]
[1730081291699,0.62501407,67775.0,67774.0,0.001]
[1730081292131,0.47746707,67775.0,67774.0,0.001]
[1730081296311,0.47646707,67775.0,67774.0,0.001]
[1730081297222,0.47646707,67775.0,67772.0,0.170552]
[1730081297438,0.47646707,67775.0,67774.0,0.002]
[1730081298151,0.47646707,67775.0,67773.0,0.14755]
[1730081299681,0.47646707,67775.0,67773.0,0.14855]
[1730081301019,0.47646707,67775.0,67774.0,0.002]
[1730081301235,0.47646707,67775.0,67774.0,0.147549]
[1730081302141,0.47646707,67775.0,67773.0,0.002]
[1730081302358,0.47646707,67775.0,67774.0,0.002]
[1730081304174,0.47646707,67775.0,67773.0,0.002]
[1730081304175,0.47646707,67775.0,67773.0,0.14755]
[1730081304388,0.47646707,67775.0,67773.0,0.14955]
[1730081304634,0.47646707,67775.0,67773.0,0.14755]
[1730081304838,0.47646707,67775.0,67774.0,0.147549]
[1730081305063,0.47646707,67775.0,67774.0,0.148549]
[1730081305279,0.47746707,67775.0,67774.0,0.148549]
[1730081305731,0.47746707,67775.0,67774.0,0.147549]
[1730081308277,0.47746707,67775.0,67774.0,0.148549]
[1730081308732,0.47746707,67775.0,67774.0,0.001]
[1730081309670,0.47746707,67775.0,67774.0,0.148549]
[1730081310857,0.29756707,67775.0,67774.0,0.32205281]
[1730081311519,0.29756707,67775.0,67774.0,0.32667035]
[1730081314200,0.29756707,67775.0,67774.0,0.56570951]
[1730081314419,0.29756707,67775.0,67774.0,0.57028749]
[1730081314869,0.29756707,67775.0,67774.0,0.65872295]
[1730081315612,0.29656707,67775.0,67774.0,0.65872295]
[1730081315832,0.29656707,67775.0,67774.0,0.66072269]
[1730081316059,0.29656707,67775.0,67774.0,0.57228723]
[1730081316274,0.29656707,67775.0,67774.0,0.57428723]
[1730081316487,0.29656707,67775.0,67774.0,0.6655998]
[1730081316713,0.29656707,67775.0,67774.0,0.71718734]
[1730081316954,0.29656707,67775.0,67774.0,0.71618734]
[1730081317437,0.29656707,67775.0,67774.0,0.69280441]
[1730081317658,0.29656707,67775.0,67774.0,0.58225963]
[1730081317887,0.29656707,67775.0,67774.0,0.69277953]
[1730081318561,0.29656707,67775.0,67774.0,0.58225963]
[1730081321532,0.29656707,67775.0,67774.0,0.6927577]
[1730081321747,0.29656707,67775.0,67774.0,0.58225963]
[1730081322433,0.29656707,67775.0,67774.0,0.67595963]
[1730081322671,0.29656707,67775.0,67774.0,0.67395963]
[1730081323146,0.29656707,67775.0,67774.0,0.67595963]
[1730081323328,0.29656707,67775.0,67774.0,0.67295963]
[1730081323573,0.29656707,67775.0,67774.0,0.77195963]
[1730081324001,0.29656707,67775.0,67774.0,0.77295963]
[1730081324190,0.29656707,67775.0,67774.0,0.77395963]
[1730081324441,0.29656707,67775.0,67774.0,0.68025963]
[1730081324658,0.29656707,67775.0,67774.0,0.68225963]
[1730081327275,0.29656707,67775.0,67774.0,0.68220636]
[1730081329977,0.29656707,67775.0,67774.0,0.71179636]
[1730081330215,0.29656707,67775.0,67774.0,0.68220636]
[1730081330627,0.29656707,67775.0,67774.0,0.68220591]
[1730081331288,0.29656707,67775.0,67774.0,0.60680591]
[1730081333070,0.29656707,67775.0,67774.0,0.71726657]
[1730081334802,0.29656707,67775.0,67774.0,0.71264974]
[1730081335027,0.29656707,67775.0,67774.0,0.71726667]
[1730081335646,0.29656707,67775.0,67774.0,0.60680601]
[1730081336543,0.29656707,67775.0,67774.0,0.69908403]
[1730081337430,0.29656707,67775.0,67774.0,0.70108403]
[1730081338452,0.29656707,67775.0,67774.0,0.87536205]
[1730081339515,0.25040257,67775.0,67774.0,0.87536205]
[1730081340633,0.25040257,67775.0,67774.0,0.87336205]
[1730081340845,0.25040257,67775.0,67774.0,0.87536205]
[1730081341240,0.25040257,67775.0,67774.0,0.87074512]
[1730081341451,0.25040257,67775.0,67774.0,0.87536166]
[1730081342795,0.001644,67785.0,67774.0,0.87536166]
[1730081342796,0.001644,67785.0,67784.0,0.007]
[1730081342934,0.001644,67785.0,67784.0,0.42492537]
[1730081343139,0.001644,67785.0,67784.0,0.4690959]
[1730081343389,0.001644,67785.0,67784.0,0.4670959]
[1730081343868,0.001644,67785.0,67784.0,0.42292537]
[1730081344091,0.001644,67785.0,67784.0,0.42692537]
[1730081344272,0.001644,67785.0,67784.0,0.42492537]
[1730081344717,0.001644,67785.0,67784.0,0.4690884]
[1730081344945,0.001644,67785.0,67784.0,0.4700884]
[1730081346046,0.001644,67785.0,67784.0,0.4720884]
[1730081346253,0.001644,67785.0,67784.0,0.4680884]
[1730081346699,0.001644,67785.0,67784.0,0.4690884]
[1730081346927,0.001644,67785.0,67784.0,0.4680884]
[1730081347139,0.001644,67785.0,67784.0,0.4670884]
[1730081347382,0.001644,67785.0,67784.0,0.4690884]
[1730081347595,0.001644,67785.0,67784.0,0.42392537]
[1730081347819,0.001644,67785.0,67784.0,0.4690884]
[1730081349093,0.001644,67785.0,67784.0,0.46908763]
[1730081349312,0.001644,67785.0,67784.0,0.46908732]
[1730081350393,0.001644,67785.0,67784.0,0.42492506]
[1730081350598,0.001644,67785.0,67784.0,0.46909152]
[1730081350809,0.001644,67785.0,67784.0,0.46909163]
[1730081351252,0.001644,67785.0,67784.0,0.42492506]
[1730081351675,0.001644,67785.0,67784.0,0.42692506]
[1730081351891,0.001644,67785.0,67784.0,0.42492506]
[1730081352823,0.001644,67785.0,67784.0,0.67631185]
[1730081353058,0.001644,67785.0,67784.0,0.67531185]
[1730081353266,0.001644,67785.0,67784.0,0.58698733]
[1730081353473,0.001644,67785.0,67784.0,0.67534418]
[1730081353894,0.001644,67785.0,67784.0,0.58698733]
[1730081354098,0.001644,67785.0,67784.0,0.58798733]
[1730081354323,0.001644,67785.0,67784.0,0.67634418]
[1730081355184,0.172144,67785.0,67784.0,0.49570931]
[1730081355437,0.172144,67785.0,67784.0,0.33264704]
[1730081355651,0.172144,67785.0,67784.0,0.32764704]
[1730081356059,0.172144,67785.0,67784.0,0.32664704]
[1730081356263,0.172144,67785.0,67784.0,0.32764704]
[1730081356482,0.172144,67785.0,67784.0,0.32664704]
[1730081356712,0.26442202,67785.0,67784.0,0.15612004]
[1730081356919,0.26442202,67785.0,67784.0,0.15150381]
[1730081357271,0.172144,67785.0,67784.0,0.15150381]
[1730081357483,0.41194702,67785.0,67784.0,0.001]
[1730081357892,0.41194702,67785.0,67784.0,0.002]
[1730081358701,0.319669,67785.0,67784.0,0.001]
[1730081358938,0.325747,67775.0,67774.0,0.000822]
[1730081359107,0.1782,67775.0,67774.0,0.000822]
[1730081360564,0.325747,67775.0,67774.0,0.000822]
[1730081360952,0.325747,67775.0,67774.0,0.002822]
[1730081361159,0.1782,67775.0,67774.0,0.002822]
[1730081361585,0.1782,67775.0,67774.0,0.001822]
[1730081361806,0.1782,67775.0,67774.0,0.002822]
[1730081362020,0.1782,67775.0,67774.0,0.001822]
[1730081362425,0.1782,67775.0,67774.0,0.002822]
[1730081362872,0.1782,67775.0,67774.0,0.001822]
[1730081363083,0.1782,67775.0,67774.0,0.002822]
[1730081363290,0.1782,67775.0,67774.0,0.001822]
[1730081363921,0.1782,67775.0,67774.0,0.002822]
[1730081365891,0.1782,67775.0,67774.0,0.001822]
[1730081366063,0.1782,67775.0,67774.0,0.002822]
[1730081366490,0.1782,67775.0,67774.0,0.150371]
[1730081366725,0.1782,67775.0,67774.0,0.002822]
[1730081367445,0.325747,67775.0,67774.0,0.002822]
[1730081367945,0.1782,67775.0,67774.0,0.002822]
[1730081368182,0.325747,67775.0,67774.0,0.001822]
[1730081369110,0.325747,67775.0,67774.0,0.002822]
[1730081369334,0.325747,67775.0,67774.0,0.001822]
[1730081369790,0.325747,67775.0,67774.0,0.002822]
[1730081370251,0.325747,67775.0,67774.0,0.000822]
[1730081370732,0.325747,67775.0,67774.0,0.002822]
[1730081376661,0.1782,67775.0,67774.0,0.002822]
[1730081376784,0.325747,67775.0,67774.0,0.002822]
[1730081377586,0.1782,67775.0,67774.0,0.002822]
[1730081379293,0.325747,67775.0,67774.0,0.002822]
[1730081379974,0.327391,67775.0,67774.0,0.002822]
[1730081380583,0.179844,67775.0,67774.0,0.150371]
[1730081380809,0.179844,67775.0,67774.0,0.002822]
[1730081385221,0.179844,67775.0,67774.0,0.001822]
[1730081385689,0.179844,67775.0,67774.0,0.002822]
[1730081385952,0.179844,67775.0,67774.0,0.001822]
[1730081387247,0.179844,67775.0,67774.0,0.002822]
[1730081394557,0.179844,67775.0,67774.0,0.150371]
[1730081395486,0.179844,67775.0,67774.0,0.002822]
[1730081397543,0.179844,67775.0,67774.0,0.150371]
[1730081398518,0.097844,67775.0,67774.0,0.150371]
[1730081400711,0.097844,67775.0,67774.0,0.002822]
[1730081400929,0.097844,67775.0,67774.0,0.150371]
[1730081403271,0.097844,67775.0,67774.0,0.002822]
[1730081403480,0.097844,67775.0,67774.0,0.150371]
[1730081403703,0.097844,67775.0,67774.0,0.15498878]
[1730081405029,0.245391,67775.0,67774.0,0.002822]
[1730081405237,0.097844,67775.0,67774.0,0.002822]
[1730081407111,0.097844,67775.0,67774.0,0.150371]
[1730081407564,0.097844,67775.0,67774.0,0.149371]
[1730081407774,0.097844,67775.0,67774.0,0.15398884]
[1730081408013,0.097844,67775.0,67774.0,0.15298884]
[1730081408461,0.097844,67775.0,67774.0,0.148371]
[1730081408940,0.097844,67775.0,67774.0,0.149371]
[1730081409156,0.097844,67775.0,67774.0,0.001822]
[1730081409593,0.097844,67775.0,67774.0,0.003822]
[1730081410247,0.097844,67775.0,67774.0,0.151371]
[1730081411351,0.097844,67775.0,67774.0,0.15598879]
[1730081411551,0.001644,67775.0,67774.0,0.17898879]
[1730081412283,0.001644,67775.0,67774.0,0.3294926]
[1730081413677,0.001644,67775.0,67774.0,0.3284926]
[1730081414123,0.001644,67775.0,67774.0,0.3294926]
[1730081414353,0.001644,67775.0,67774.0,0.3274926]
[1730081414574,0.001644,67775.0,67774.0,0.3284926]
[1730081417039,0.001644,67775.0,67774.0,0.32387481]
[1730081417246,0.001644,67775.0,67774.0,0.32849256]
[1730081418880,0.001644,67775.0,67774.0,0.32387481]
[1730081419974,0.001644,67775.0,67774.0,0.18094356]
[1730081420195,0.001644,67775.0,67774.0,0.32849256]
[1730081420415,0.001644,67775.0,67774.0,0.21053356]
[1730081420638,0.001644,67775.0,67774.0,0.18094356]
[1730081420854,0.001644,67775.0,67774.0,0.32387481]
[1730081421064,0.001644,67775.0,67774.0,0.17632581]
[1730081421497,0.00089152,67775.0,67774.0,0.17632581]
[1730081421715,0.00089152,67775.0,67774.0,0.18094361]
[1730081421951,0.00089152,67775.0,67774.0,0.0074398]
[1730081422169,0.41471654,67775.0,67774.0,0.002822]
[1730081422829,0.41471654,67775.0,67774.0,0.000822]
[1730081423042,0.41471654,67775.0,67774.0,0.001822]
[1730081423270,0.41471654,67775.0,67774.0,0.002822]
[1730081423698,0.41471654,67775.0,67774.0,0.001822]
[1730081424163,0.41971654,67775.0,67774.0,0.001822]
[1730081424375,0.41971654,67775.0,67774.0,0.000822]
[1730081424803,0.42471654,67775.0,67774.0,0.000822]
[1730081430663,0.42456899,67775.0,67774.0,0.000822]
[1730081432327,0.51684701,67775.0,67774.0,0.000822]
[1730081432956,0.42456899,67775.0,67774.0,0.000822]
[1730081433497,0.33229097,67775.0,67774.0,0.000822]
[1730081433707,0.42456899,67775.0,67774.0,0.000822]
[1730081434374,0.33229097,67775.0,67774.0,0.000822]
[1730081434814,0.37654514,67775.0,67774.0,0.000822]
[1730081435468,0.22899814,67775.0,67774.0,0.000822]
[1730081435679,0.05499814,67775.0,67774.0,0.000822]
[1730081436569,0.04999814,67775.0,67774.0,0.000822]
[1730081436779,0.05099814,67775.0,67774.0,0.000822]
[1730081437227,0.19354514,67775.0,67774.0,0.000822]
[1730081437437,0.04599814,67775.0,67774.0,0.000822]
[1730081437650,0.04699814,67775.0,67774.0,0.000822]
[1730081438571,0.19454514,67775.0,67774.0,0.000822]
[1730081439292,0.15029097,67775.0,67774.0,0.000822]
[1730081444888,0.15019775,67775.0,67774.0,0.000822]
[1730081450536,0.24247577,67775.0,67774.0,0.000822]
[1730081450744,0.33877577,67775.0,67774.0,0.000822]
[1730081452858,0.42177577,67775.0,67774.0,0.000822]
[1730081453074,0.46602847,67775.0,67774.0,0.000822]
[1730081453291,0.42177577,67775.0,67774.0,0.000822]
[1730081457233,0.32949775,67775.0,67774.0,0.000822]
[1730081460543,0.42177577,67775.0,67774.0,0.000822]
[1730081463071,0.51405379,67775.0,67774.0,0.000822]
[1730081463293,0.65827681,67775.0,67774.0,0.000822]
[1730081463504,0.61905379,67775.0,67774.0,0.000822]
[1730081463992,0.61805379,67775.0,67774.0,0.000822]
[1730081464214,0.68438832,67775.0,67774.0,0.000822]
[1730081464435,0.7925576,67775.0,67774.0,0.001822]
[1730081464649,0.8025576,67775.0,67774.0,0.002822]
[1730081466228,0.82567326,67775.0,67774.0,0.002822]
[1730081466881,0.83699367,67775.0,67774.0,0.002822]
[1730081468883,0.83499367,67775.0,67774.0,0.002822]
[1730081469572,0.83699367,67775.0,67774.0,0.002822]
[1730081469827,0.94529019,67775.0,67774.0,0.002822]
[1730081470044,0.94729019,67775.0,67774.0,0.002822]
[1730081470535,0.83499367,67775.0,67774.0,0.002822]
[1730081470978,0.83699367,67775.0,67774.0,0.002822]
[1730081471237,0.83499367,67775.0,67774.0,0.002822]
[1730081471462,0.9232388,67775.0,67774.0,0.002822]
[1730081471685,0.81387801,67775.0,67774.0,0.002822]
[1730081472373,0.90211758,67775.0,67774.0,0.002822]
[1730081473273,0.81387801,67775.0,67774.0,0.002822]
[1730081473710,0.90210753,67775.0,67774.0,0.002822]
[1730081474138,0.90210594,67775.0,67774.0,0.002822]
[1730081475441,0.81387801,67775.0,67774.0,0.002822]
[1730081475873,0.90210594,67775.0,67774.0,0.002822]
[1730081476319,0.90209472,67775.0,67774.0,0.002822]
[1730081476559,0.69348414,67775.0,67774.0,0.002822]
[1730081476777,0.85598738,67775.0,67774.0,0.002822]
[1730081477024,0.81187801,67775.0,67774.0,0.002822]
[1730081480144,0.85598738,67775.0,67774.0,0.002822]
[1730081481066,0.85598515,67775.0,67774.0,0.002822]
[1730081481289,0.81187801,67775.0,67774.0,0.002822]
[1730081481510,0.85598515,67775.0,67774.0,0.002822]
[1730081481735,0.81187801,67775.0,67774.0,0.002822]
[1730081481963,0.85598515,67775.0,67774.0,0.002822]
[1730081483729,0.81187801,67775.0,67774.0,0.002822]
[1730081483938,0.85598644,67775.0,67774.0,0.002822]
[1730081484332,0.81187801,67775.0,67774.0,0.002822]
[1730081485021,0.81387801,67775.0,67774.0,0.002822]
[1730081485266,0.88003872,67775.0,67774.0,0.002822]
[1730081485455,0.87803872,67775.0,67774.0,0.002822]
[1730081486202,0.81187801,67775.0,67774.0,0.002822]
[1730081486875,0.87804352,67775.0,67774.0,0.002822]
[1730081487106,0.81187801,67775.0,67774.0,0.002822]
[1730081487791,0.87804607,67775.0,67774.0,0.002822]
[1730081489143,0.81187801,67775.0,67774.0,0.002822]
[1730081489806,0.87805059,67775.0,67774.0,0.002822]
[1730081490657,0.81187801,67775.0,67774.0,0.002822]
[1730081491284,0.81387801,67775.0,67774.0,0.002822]
[1730081492401,0.90211536,67775.0,67774.0,0.002822]
[1730081494415,0.81187801,67775.0,67774.0,0.002822]
[1730081494877,0.90415603,67775.0,67774.0,0.002822]
[1730081495088,0.81187801,67775.0,67774.0,0.002822]
[1730081495308,0.81387801,67775.0,67774.0,0.002822]
[1730081496321,0.81187801,67775.0,67774.0,0.002822]
[1730081496524,0.81387801,67775.0,67774.0,0.002822]
[1730081498119,0.81187801,67775.0,67774.0,0.002822]
[1730081499542,0.81387801,67775.0,67774.0,0.002822]
[1730081516043,0.437066,67766.0,67765.0,0.22067148]
[1730081516292,0.77212585,67766.0,67765.0,0.22067148]
[1730081516537,0.77212585,67766.0,67765.0,0.000822]
[1730081517411,0.79312585,67766.0,67765.0,0.002822]
[1730081517641,0.78512585,67766.0,67765.0,0.001822]
[1730081517875,0.77412585,67766.0,67765.0,0.000822]
[1730081518087,0.77412585,67766.0,67765.0,0.001822]
[1730081518088,0.78412585,67766.0,67765.0,0.001822]
[1730081518320,0.79712585,67766.0,67765.0,0.002822]
[1730081518569,0.79512585,67766.0,67765.0,0.002822]
[1730081519943,0.94562966,67766.0,67765.0,0.002822]
[1730081525203,0.95652564,67766.0,67765.0,0.002822]
[1730081528656,0.54236579,67766.0,67765.0,0.002822]
[1730081528863,0.53924381,67766.0,67765.0,0.002822]
[1730081529723,0.52624381,67766.0,67765.0,0.000822]
[1730081529924,0.51624381,67766.0,67765.0,0.000822]
[1730081530131,0.54424381,67766.0,67765.0,0.001822]
[1730081530369,0.54424381,67766.0,67765.0,0.000822]
[1730081530573,0.53024381,67766.0,67765.0,0.000822]
[1730081530784,0.54424381,67766.0,67765.0,0.001822]
[1730081531430,0.53024381,67766.0,67765.0,0.000822]
[1730081531841,0.54324381,67766.0,67765.0,0.001822]
[1730081533216,0.52924381,67766.0,67765.0,0.001822]
[1730081533646,0.54224381,67766.0,67765.0,0.001822]
[1730081542586,0.44996579,67766.0,67765.0,0.001822]
[1730081542810,0.54224381,67766.0,67765.0,0.001822]
[1730081547625,0.63674381,67766.0,67765.0,0.001822]
[1730081548464,0.78724762,67766.0,67765.0,0.001822]
[1730081551246,0.54446579,67766.0,67765.0,0.001822]
[1730081551459,0.63674381,67766.0,67765.0,0.001822]
[1730081552110,0.54446579,67766.0,67765.0,0.001822]
[1730081552326,0.63674381,67766.0,67765.0,0.001822]
[1730081566629,0.76946668,67766.0,67765.0,0.001822]
[1730081566857,0.63674381,67766.0,67765.0,0.001822]
[1730081567344,0.78724762,67766.0,67765.0,0.001822]
[1730081567762,0.63674381,67766.0,67765.0,0.001822]
[1730081568194,0.72902183,67766.0,67765.0,0.001822]
[1730081568847,0.63674381,67766.0,67765.0,0.001822]
[1730081573397,0.76951446,67766.0,67765.0,0.001822]
[1730081576440,0.52134783,67766.0,67765.0,0.001822]
[1730081576646,0.53134783,67766.0,67765.0,0.001822]
[1730081578463,0.43906981,67766.0,67765.0,0.001822]
[1730081578671,0.53134783,67766.0,67765.0,0.001822]
[1730081580190,0.51834783,67766.0,67765.0,0.000822]
[1730081580406,0.50534783,67766.0,67765.0,0.000822]
[1730081580633,0.52834783,67766.0,67765.0,0.001822]
[1730081581086,0.51734783,67766.0,67765.0,0.001822]
[1730081581524,0.52934783,67766.0,67765.0,0.001822]
[1730081582883,0.43706981,67766.0,67765.0,0.001822]
[1730081583108,0.52934783,67766.0,67765.0,0.001822]
[1730081586155,0.52934783,67766.0,67765.0,0.00178069]
[1730081603101,0.71982585,67766.0,67765.0,0.00178069]
[1730081603331,0.80082585,67766.0,67765.0,0.00178069]
[1730081607174,0.80246985,67766.0,67765.0,0.00178069]
[1730081608999,0.80446985,67766.0,67765.0,0.00178069]
[1730081610542,0.71219183,67766.0,67765.0,0.00178069]
[1730081613970,0.80446985,67766.0,67765.0,0.00178069]
[1730081614189,0.71219183,67766.0,67765.0,0.00178069]
[1730081615294,0.84480186,67766.0,67765.0,0.00178069]
[1730081615771,0.93707988,67766.0,67765.0,0.00178069]
[1730081616001,0.71219183,67766.0,67765.0,0.00178069]
[1730081616473,0.93707438,67766.0,67765.0,0.00178069]
[1730081617165,0.84479636,67766.0,67765.0,0.00178069]
[1730081617603,0.84479328,67766.0,67765.0,0.00178069]
[1730081618061,0.23986202,67758.0,67757.0,0.21984948]
[1730081618282,0.45666544,67758.0,67757.0,0.21984948]
[1730081618502,0.147599,67751.0,67750.0,0.21984948]
[1730081618954,0.147605,67748.0,67747.0,0.0792]
[1730081620087,0.147602,67750.0,67747.0,0.0792]
[1730081620331,0.295194,67752.0,67744.0,0.295225]
[1730081620332,0.147599,67751.0,67748.0,0.1713]
[1730081620559,0.51503448,67754.0,67749.0,0.224002]
[1730081620775,0.147597,67752.0,67750.0,0.002]
[1730081621226,0.147594,67753.0,67749.0,0.224003]
[1730081621460,0.147598,67752.0,67749.0,0.224003]
[1730081621674,0.38746302,67754.0,67749.0,0.0764]
[1730081621888,0.1476,67751.0,67749.0,0.0764]
[1730081623317,0.147597,67753.0,67749.0,0.226003]
[1730081623422,0.147598,67752.0,67749.0,0.0784]
[1730081623661,0.295189,67753.0,67749.0,0.0764]
[1730081623899,0.147599,67751.0,67749.0,0.0784]
[1730081624123,0.147599,67751.0,67749.0,0.0804]
[1730081624336,0.147599,67751.0,67749.0,0.0784]
[1730081624797,0.295185,67754.0,67749.0,0.0784]
[1730081625022,0.295185,67754.0,67749.0,0.0804]
[1730081625263,0.295185,67754.0,67749.0,0.0784]
[1730081625476,0.147595,67753.0,67749.0,0.228003]
[1730081625926,0.295185,67754.0,67749.0,0.228003]
[1730081626150,0.147597,67752.0,67749.0,0.226003]
[1730081626368,0.147597,67752.0,67749.0,0.228003]
[1730081626639,0.1476,67751.0,67749.0,0.0784]
[1730081626871,0.295181,67755.0,67749.0,0.224003]
[1730081627112,0.147598,67752.0,67749.0,0.228003]
[1730081627334,0.295185,67754.0,67749.0,0.0784]
[1730081627752,0.147598,67752.0,67749.0,0.0784]
[1730081627962,0.147598,67752.0,67749.0,0.0764]
[1730081628411,0.147598,67752.0,67749.0,0.0784]
[1730081629748,0.442778,67754.0,67750.0,0.1476]
[1730081629968,0.147599,67752.0,67749.0,0.0784]
[1730081630189,0.147599,67751.0,67749.0,0.0784]
[1730081630431,0.147599,67751.0,67749.0,0.0804]
[1730081630660,0.147599,67751.0,67749.0,0.0764]
[1730081630916,0.147599,67751.0,67750.0,0.002]
[1730081631146,0.147599,67751.0,67750.0,0.004]
[1730081631364,0.15860802,67760.0,67749.0,0.077222]
[1730081631365,0.04422,67759.0,67749.0,0.077222]
[1730081631586,0.21984948,67761.0,67756.0,0.023]
[1730081632059,0.29515,67762.0,67756.0,0.023]
[1730081632060,0.147582,67759.0,67756.0,0.147588]
[1730081632723,0.147584,67758.0,67755.0,0.17059]
[1730081634063,0.149584,67758.0,67755.0,0.17059]
[1730081634745,0.152584,67758.0,67755.0,0.17059]
[1730081635182,0.149584,67758.0,67755.0,0.17059]
[1730081635395,0.149584,67758.0,67755.0,0.17159]
[1730081635867,0.147584,67758.0,67755.0,0.17159]
[1730081636086,0.147587,67757.0,67755.0,0.026]
[1730081636519,0.442753,67758.0,67755.0,0.026]
[1730081636735,0.147588,67756.0,67755.0,0.026]
[1730081636965,0.147587,67757.0,67755.0,0.025]
[1730081637195,0.147588,67756.0,67755.0,0.025]
[1730081637406,0.147588,67756.0,67755.0,0.026]
[1730081638305,0.147588,67756.0,67755.0,0.025]
[1730081638583,0.147588,67756.0,67755.0,0.026]
[1730081639012,0.147588,67756.0,67755.0,0.024]
[1730081639233,0.147588,67756.0,67755.0,0.026]
[1730081639404,0.147588,67756.0,67755.0,0.024]
[1730081639827,0.147586,67757.0,67755.0,0.026]
[1730081640383,0.147588,67756.0,67755.0,0.026]
[1730081640599,0.147588,67756.0,67755.0,0.024]
[1730081640828,0.147588,67756.0,67755.0,0.023]
[1730081641049,0.147588,67756.0,67755.0,0.024]
[1730081641485,0.147588,67756.0,67755.0,0.023]
[1730081642144,0.147588,67756.0,67755.0,0.025]
[1730081642406,0.147588,67756.0,67755.0,0.023]
[1730081642624,0.147588,67756.0,67755.0,0.025]
[1730081643057,0.147588,67756.0,67755.0,0.026]
[1730081646425,0.29515,67762.0,67755.0,0.026]
[1730081646645,0.147588,67757.0,67755.0,0.026]
[1730081647075,0.147583,67759.0,67755.0,0.026]
[1730081647284,0.295162,67760.0,67755.0,0.026]
[1730081647501,0.147581,67759.0,67755.0,0.32018]
[1730081647719,0.147586,67757.0,67755.0,0.026]
[1730081647941,0.147588,67756.0,67755.0,0.026]
[1730081648365,0.147588,67756.0,67755.0,0.024]
[1730081649046,0.147587,67757.0,67755.0,0.023]
[1730081649286,0.147587,67757.0,67755.0,0.026]
[1730081649484,0.147587,67757.0,67755.0,0.024]
[1730081649667,0.295166,67759.0,67755.0,0.023]
[1730081649945,0.147588,67756.0,67755.0,0.025]
[1730081650178,0.147588,67756.0,67755.0,0.024]
[1730081650398,0.147586,67758.0,67755.0,0.024]
[1730081650618,0.147588,67756.0,67755.0,0.023]
[1730081651017,0.147588,67756.0,67755.0,0.024]
[1730081651223,0.095344,67763.0,67755.0,0.024]
[1730081651443,0.095344,67763.0,67755.0,0.026]
[1730081651444,0.295159,67760.0,67755.0,0.026]
[1730081651646,0.295163,67759.0,67755.0,0.024]
[1730081652087,0.14758,67760.0,67756.0,0.147587]
[1730081652304,0.295155,67761.0,67755.0,0.170589]
[1730081652526,0.147585,67758.0,67755.0,0.024]
[1730081652745,0.147586,67757.0,67755.0,0.026]
[1730081653157,0.147586,67757.0,67756.0,0.001]
[1730081653359,0.147586,67757.0,67756.0,0.025]
[1730081653571,0.095344,67763.0,67756.0,0.025]
[1730081653788,0.295155,67761.0,67756.0,0.024]
[1730081654065,0.295159,67760.0,67756.0,0.024]
[1730081654278,0.147585,67758.0,67756.0,0.024]
[1730081654892,0.295159,67760.0,67756.0,0.024]
[1730081655128,0.147586,67757.0,67756.0,0.024]
[1730081655380,0.147582,67759.0,67756.0,0.024]
[1730081655554,0.147582,67759.0,67756.0,0.023]
[1730081655763,0.147582,67759.0,67756.0,0.025]
[1730081655983,0.147586,67757.0,67756.0,0.025]
[1730081656193,0.390492,67763.0,67756.0,0.172587]
[1730081656407,0.390492,67763.0,67755.0,0.000822]
[1730081656408,0.095344,67763.0,67755.0,0.023822]
[1730081656613,0.147584,67759.0,67756.0,0.026]
[1730081656829,0.295155,67761.0,67756.0,0.025]
[1730081657043,0.147584,67758.0,67756.0,0.023]
[1730081657275,0.147584,67758.0,67756.0,0.024]
[1730081657487,0.147584,67758.0,67756.0,0.002]
[1730081658352,0.295162,67760.0,67756.0,0.002]
[1730081658353,0.147586,67757.0,67756.0,0.025]
[1730081658565,0.295162,67760.0,67755.0,0.023822]
[1730081658760,0.295162,67760.0,67756.0,0.025]
[1730081658761,0.147587,67757.0,67756.0,0.025]
[1730081658991,0.147587,67757.0,67756.0,0.027]
[1730081659411,0.147587,67757.0,67756.0,0.029]
[1730081659622,0.147587,67757.0,67756.0,0.02961897]
[1730081660286,0.147582,67759.0,67756.0,0.02961897]
[1730081660494,0.295164,67759.0,67756.0,0.025]
[1730081660705,0.147584,67758.0,67756.0,0.025]
[1730081660921,0.295163,67759.0,67756.0,0.025]
[1730081661646,0.147585,67758.0,67756.0,0.025]
[1730081662054,0.147585,67758.0,67756.0,0.027]
[1730081662261,0.147585,67758.0,67756.0,0.025]
[1730081662471,0.147585,67758.0,67755.0,0.023822]
[1730081662677,0.147585,67758.0,67756.0,0.00661903]
[1730081662891,0.296794,67763.0,67757.0,0.21984948]
[1730081663103,0.147582,67759.0,67756.0,0.149587]
[1730081663517,0.147582,67759.0,67757.0,0.00461889]
[1730081663742,0.147582,67759.0,67758.0,0.00461889]
[1730081666160,0.147584,67758.0,67756.0,0.002]
[1730081666372,0.147584,67758.0,67757.0,0.00461888]
[1730081667528,0.295155,67761.0,67757.0,0.00461888]
[1730081667734,0.14758,67760.0,67758.0,0.00461888]
[1730081668030,0.295155,67761.0,67757.0,0.002]
[1730081668455,0.147584,67758.0,67757.0,0.002]
[1730081669095,0.147584,67758.0,67757.0,0.00461898]
[1730081669416,0.147584,67758.0,67757.0,0.00861898]
[1730081669638,0.296793,67763.0,67757.0,0.00861898]
[1730081669639,0.001644,67763.0,67758.0,0.023]
[1730081669836,0.001644,67763.0,67760.0,0.023]
[1730081670055,0.001644,67763.0,67762.0,0.023]
[1730081670950,0.001644,67763.0,67762.0,0.170575]
[1730081672102,0.003644,67763.0,67762.0,0.170575]
[1730081672733,0.005644,67763.0,67762.0,0.170575]
[1730081673086,0.003644,67763.0,67762.0,0.170575]
[1730081673309,0.003644,67763.0,67762.0,0.172575]
[1730081673780,0.003644,67763.0,67762.0,0.32603002]